{"text_format":"3","workbook":"xlsx","n_sheets":4,"sheets":["Indkøbsliste","Budgetoversigt","Opgaveliste","Delingsliste"],"not_rendered":{"charts":2,"images":2,"defined_names":12},"read":"whole","date_system":"1900"}

{"sheet":"Indkøbsliste","index":0,"n_rows":25,"n_cols":12,"rows_kept":25,"merged":[[2,1,2,7],[3,1,3,2],[4,4,6,7]]}
[null,"Skolestart","Planlægningskalender"]
[{"$nulls":11},"  "]
[null,"Hold øje med statussen på dine indkøb, og sammenhold den med beløbene for budgetkategorien angivet i Budgetoversigt."]
[null,"Budgetsammendrag",null,null,{"$f":"\"Købsfremskridt (\"&COUNTIFS(Tjekliste[Købt], \">0\")&\" af \"&COUNTIFS(Tjekliste[Skal købes], \">0\")&\")\"","v":"Købsfremskridt (1 af 6)"}]
[null,"Budget",{"v":1500,"d":"kr. 1,500.00"},null,{"$f":"IFERROR(COUNTIFS(Tjekliste[Skal købes],\">0\",Tjekliste[Købt],\">0\")/SumSkalKøbesVarer,0)","v":{"v":0.16666666666666666,"d":"17%"}}]
[null,"Total for Indkøbsliste",{"$f":"IFERROR(SUM(TjeklisteTotal), \"\")","v":{"v":365,"d":"kr. 365.00"}}]
[null,"Tilbageværende beløb",{"$f":"IFERROR(C5-C6, \"\")","v":{"v":1135,"d":"kr. 1,135.00"}}]
[null,"Indkøbsliste"]
[null,"Vare","Kategori","Antal","Skal købes","Udgift","Købt","Totalen for Udgifter"]
[null,"Matematik","Lærebøger",1,1,{"v":55,"d":"kr. 55.00"},1,{"$f":"IFERROR(Tjekliste[Antal]*Tjekliste[Udgift], \"\")","v":{"v":55,"d":"kr. 55.00"}}]
[null,"Engelsk","Lærebøger",1,1,null,null,{"$f":"IFERROR(Tjekliste[Antal]*Tjekliste[Udgift], \"\")","v":0}]
[null,"Rygsæk","Skriveartikler",1,null,{"v":30,"d":"kr. 30.00"},null,{"$f":"IFERROR(Tjekliste[Antal]*Tjekliste[Udgift], \"\")","v":{"v":30,"d":"kr. 30.00"}}]
[null,"Lommeregner","Skriveartikler",1,{"$nulls":3},{"$f":"IFERROR(Tjekliste[Antal]*Tjekliste[Udgift], \"\")","v":0}]
[null,"Overstregningstuscher","Skriveartikler",3,{"$nulls":3},{"$f":"IFERROR(Tjekliste[Antal]*Tjekliste[Udgift], \"\")","v":0}]
[null,"Skoleuniform","Tøj",2,1,{"v":100,"d":"kr. 100.00"},null,{"$f":"IFERROR(Tjekliste[Antal]*Tjekliste[Udgift], \"\")","v":{"v":200,"d":"kr. 200.00"}}]
[null,"Skjorter","Tøj",4,{"$nulls":3},{"$f":"IFERROR(Tjekliste[Antal]*Tjekliste[Udgift], \"\")","v":0}]
[null,"T-shirts","Tøj",5,{"$nulls":3},{"$f":"IFERROR(Tjekliste[Antal]*Tjekliste[Udgift], \"\")","v":0}]
[null,"Shorts","Tøj",2,{"$nulls":3},{"$f":"IFERROR(Tjekliste[Antal]*Tjekliste[Udgift], \"\")","v":0}]
[null,"Gummisko","Tøj",2,1,null,null,{"$f":"IFERROR(Tjekliste[Antal]*Tjekliste[Udgift], \"\")","v":0}]
[null,"Sokker","Tøj",10,{"$nulls":3},{"$f":"IFERROR(Tjekliste[Antal]*Tjekliste[Udgift], \"\")","v":0}]
[null,"Forårsjakke","Tøj",1,1,{"v":80,"d":"kr. 80.00"},null,{"$f":"IFERROR(Tjekliste[Antal]*Tjekliste[Udgift], \"\")","v":{"v":80,"d":"kr. 80.00"}}]
[null,"Sweatere","Tøj",1,{"$nulls":3},{"$f":"IFERROR(Tjekliste[Antal]*Tjekliste[Udgift], \"\")","v":0}]
[null,"Hættetrøjer","Tøj",1,{"$nulls":3},{"$f":"IFERROR(Tjekliste[Antal]*Tjekliste[Udgift], \"\")","v":0}]
[null,"Undertøj","Tøj",10,{"$nulls":3},{"$f":"IFERROR(Tjekliste[Antal]*Tjekliste[Udgift], \"\")","v":0}]
[null,"Vinterjakke","Tøj",1,1,null,null,{"$f":"IFERROR(Tjekliste[Antal]*Tjekliste[Udgift], \"\")","v":0}]

{"sheet":"Budgetoversigt","index":1,"n_rows":6,"n_cols":3,"rows_kept":6}
[null,"Budgetoversigt"]
[null,"Tilføj kategorier og budgetbeløb for at sammenstille dem med din Indkøbsliste."]
[null,"Kategori","Totalen for Udgifter"]
[null,"Tøj",{"$f":"IFERROR(SUMIFS(Tjekliste[Totalen for Udgifter],Tjekliste[Kategori],Kategori[Kategori]), \"\")","v":{"v":280,"d":"kr. 280.00"}}]
[null,"Skriveartikler",{"$f":"IFERROR(SUMIFS(Tjekliste[Totalen for Udgifter],Tjekliste[Kategori],Kategori[Kategori]), \"\")","v":{"v":30,"d":"kr. 30.00"}}]
[null,"Lærebøger",{"$f":"IFERROR(SUMIFS(Tjekliste[Totalen for Udgifter],Tjekliste[Kategori],Kategori[Kategori]), \"\")","v":{"v":55,"d":"kr. 55.00"}}]

{"sheet":"Opgaveliste","index":2,"n_rows":22,"n_cols":3,"rows_kept":22}
[null,"Opgaveliste"]
[null,"Få styr på alle de aktiviteter, du skal have ordnet, før skolen begynder."]
[null,"Færdig","Opgave"]
[null,"x","Udfyld alle registreringsformularer"]
[null,null,"Bestil tid til at få lavet en lægeundersøgelse af fysikken og af synet, hvis det er nødvendigt"]
[null,null,"Bekræft alle de påkrævede vaccinationer"]
[null,null,"Bed lægen om at udskrive en note med doseringsanvisninger for alle de nødvendige typer medicin"]
[null,null,"Gennemgå skolens regler for påklædning"]
[null,null,"Indhent en liste over skoleartikler"]
[null,null,"Mød med lærerne"]
[null,null,"Find ud af lærerens foretrukne kommunikationsmetode (telefon, mail, håndskrevet seddel)"]
[null,null,"Tag på rundvisning på skolen med dit barn"]
[null,null,"Hjælp til dit barn med at huske hjemme- og arbejdstelefonnummeret samt hjemmeadressen"]
[null,null,"Sørg for transporten, vælg et sikkert mødested, og øv rutinen"]
[null,null,"Hvis på gåben, så øv ruten til og fra skolen med dit barn et par gange"]
[null,null,"Hvis samkørsel, så introducer dit barn til dem, der står for samkørslen"]
[null,null,"Hvis buskørsel, så find ud af tiderne og stoppestederne"]
[null,null,"Sørg for børnepasning/skolefritidsordning"]
[null,null,"Læg en madplan for morgenmad, skolesnacks, madpakke og snacks efter skolen"]
[null,null,"Find ud af, hvor og hvornår der laves lektier"]
[null,null,"Etabler en sengetidsrutine mindst to uger før skolestart"]
[null,null,"Lav en kalender over alle skolebegivenheder og -aktiviteter"]

{"sheet":"Delingsliste","index":3,"n_rows":4,"n_cols":5,"rows_kept":4}
[null,"Delingsliste",null,null,"Del denne liste med andre, så de kan bidrage til den. Vælg Del i øverste højre hjørne, eller tryk på ALT og derefter YU. Gem filen på OneDrive, og send linket til dine venner."]
[null,"Navn","Mail","Delt?"]
[null,"Person 1","nogen@email.com","Ja"]
[null,"Person 2","nogen@email.com","Nej"]